bitfinex/quotes_BTCUSD_20241124
["timestamp","ask_amount","ask_price","bid_price","bid_amount"]
[1732445247150,0.00833993,97331.0,97326.0,0.0008589]
[1732445247393,0.15,97329.0,97326.0,0.0008589]
[1732445247641,0.10201427,97328.0,97326.0,0.0008589]
[1732445248577,0.023,97327.0,97318.0,0.26783588]
[1732445248812,0.00833993,97331.0,97327.0,0.1885101]
[1732445249032,0.00833993,97331.0,97330.0,0.1885101]
[1732445249688,0.00833993,97331.0,97330.0,0.2368101]
[1732445249932,0.00833993,97331.0,97330.0,0.26049111]
[1732445250843,0.03133993,97331.0,97330.0,0.25849111]
[1732445251531,0.03173793,97331.0,97330.0,0.06998101]
[1732445251752,0.03173793,97331.0,97330.0,0.33959111]
[1732445251978,0.03173793,97331.0,97330.0,0.3159101]
[1732445252434,0.03173793,97331.0,97330.0,0.3179101]
[1732445252651,0.00873793,97331.0,97330.0,0.3179101]
[1732445252882,0.00873793,97331.0,97330.0,0.41992437]
[1732445253110,0.0017184,97362.0,97330.0,0.48191681]
[1732445253338,0.10373267,97362.0,97356.0,0.2696101]
[1732445253581,0.10373267,97362.0,97357.0,0.03179101]
[1732445253831,0.0017184,97362.0,97357.0,0.22030111]
[1732445254085,0.0017184,97362.0,97361.0,0.1885101]
[1732445254302,0.0017184,97362.0,97361.0,0.1905101]
[1732445254533,0.0017184,97362.0,97361.0,0.22548021]
[1732445255056,0.0017184,97362.0,97361.0,0.30658021]
[1732445255947,0.0247184,97362.0,97361.0,0.30658021]
[1732445256173,0.0017184,97362.0,97361.0,0.30658021]
[1732445256628,0.0017184,97362.0,97361.0,0.40859448]
[1732445256844,0.0017184,97362.0,97361.0,0.45489448]
[1732445257061,0.0017184,97362.0,97361.0,0.65489448]
[1732445257506,0.0017184,97362.0,97361.0,0.6544679]
[1732445258254,0.0017178,97384.0,97361.0,0.6544679]
[1732445258255,0.0017178,97384.0,97383.0,0.31548352]
[1732445259385,0.0017178,97384.0,97383.0,0.41949779]
[1732445259599,0.0017178,97384.0,97383.0,0.31748352]
[1732445259824,0.0017178,97384.0,97383.0,0.41949779]
[1732445261012,0.0017178,97384.0,97383.0,0.41749779]
[1732445261265,0.0247178,97384.0,97383.0,0.46748555]
[1732445261484,0.0247178,97384.0,97383.0,0.4720145]
[1732445261939,0.0247178,97384.0,97383.0,0.4700145]
[1732445262158,0.0247178,97384.0,97383.0,0.4720145]
[1732445262884,0.0247178,97388.0,97387.0,0.61638352]
[1732445263108,0.0017178,97388.0,97387.0,0.91839779]
[1732445263335,0.0017178,97388.0,97387.0,0.92292635]
[1732445263613,0.0017178,97388.0,97387.0,0.95789646]
[1732445264140,0.00496,97424.0,97423.0,0.18808352]
[1732445264610,0.00496,97424.0,97423.0,0.19465481]
[1732445264844,0.00496,97424.0,97423.0,0.19568118]
[1732445265060,0.00496,97424.0,97423.0,0.2228793]
[1732445265290,0.00496,97424.0,97423.0,0.22185293]
[1732445265521,0.00496,97424.0,97423.0,0.21985293]
[1732445266744,0.02796,97424.0,97423.0,0.22185293]
[1732445269411,0.02796,97424.0,97423.0,0.21985293]
[1732445269654,0.02796,97424.0,97423.0,0.22185293]
[1732445272806,0.02796,97424.0,97423.0,0.21985293]
[1732445275558,0.0017188,97430.0,97423.0,0.22185293]
[1732445275773,0.0017188,97430.0,97429.0,0.18808352]
[1732445275998,0.0017188,97430.0,97429.0,0.192947]
[1732445276212,0.0017188,97430.0,97429.0,0.19938313]
[1732445276435,0.0017188,97430.0,97429.0,0.25547962]
[1732445276653,0.0017188,97430.0,97429.0,0.28219984]
[1732445277609,0.0017188,97430.0,97429.0,0.28204993]
[1732445279324,0.0017188,97430.0,97429.0,0.29228293]
[1732445280878,0.0017188,97430.0,97429.0,0.24258293]
[1732445281129,0.0017188,97431.0,97429.0,0.24258293]
[1732445281130,0.0005976,97431.0,97430.0,0.002]
[1732445281351,0.0005976,97431.0,97430.0,0.13962764]
[1732445281572,0.0005976,97431.0,97430.0,0.14840285]
[1732445281799,0.0005976,97431.0,97430.0,0.14942906]
[1732445282029,0.0005976,97431.0,97430.0,0.15142906]
[1732445282263,0.0005976,97431.0,97430.0,0.24704684]
[1732445282474,0.0005976,97431.0,97430.0,0.24602063]
[1732445282904,0.0005976,97431.0,97430.0,0.59402063]
[1732445283122,0.0005976,97431.0,97430.0,0.44602063]
[1732445283342,0.0005976,97431.0,97430.0,0.14400636]
[1732445284448,0.0005976,97431.0,97430.0,0.14503253]
[1732445284678,0.0005976,97431.0,97430.0,0.14400636]
[1732445285660,0.0005976,97431.0,97430.0,0.2470468]
[1732445285890,0.0005976,97431.0,97430.0,0.24602063]
[1732445286333,0.0005976,97431.0,97430.0,0.25241599]
[1732445286553,0.0005976,97431.0,97430.0,0.29901599]
[1732445287474,0.0017188,97450.0,97446.0,0.002]
[1732445287682,0.0017188,97450.0,97446.0,0.01862781]
[1732445287933,0.0017188,97450.0,97446.0,0.0209968]
[1732445288623,0.0017188,97450.0,97446.0,0.0229968]
[1732445288860,0.0017188,97450.0,97446.0,0.21526762]
[1732445289141,0.0017188,97450.0,97446.0,0.23679438]
[1732445289364,0.0017188,97450.0,97446.0,0.33880865]
[1732445289637,0.0017188,97450.0,97446.0,0.35802162]
[1732445290099,0.0017188,97450.0,97446.0,0.40302162]
[1732445290332,0.0017188,97450.0,97446.0,0.38380865]
[1732445290560,0.0017188,97450.0,97446.0,0.40302162]
[1732445291282,0.0017188,97450.0,97446.0,0.38639381]
[1732445291539,0.0017188,97450.0,97446.0,0.37357496]
[1732445294455,0.0017188,97450.0,97446.0,0.57357496]
[1732445295447,0.0017188,97450.0,97446.0,0.58380556]
[1732445297601,0.0017178,97482.0,97459.0,0.002]
[1732445297828,0.0017178,97482.0,97459.0,0.12979554]
[1732445298057,0.0017178,97482.0,97459.0,0.13412358]
[1732445298520,0.0017178,97482.0,97459.0,0.13412258]
[1732445298770,0.0017178,97482.0,97459.0,0.14753484]
[1732445299495,0.0017178,97482.0,97459.0,0.13730486]
[1732445301855,0.0017178,97482.0,97459.0,0.43931913]
[1732445304569,0.0017178,97482.0,97459.0,0.43292539]
[1732445305258,0.0017178,97482.0,97459.0,0.51572539]
[1732445306358,0.0017178,97482.0,97459.0,0.86572539]
[1732445307468,0.0017178,97482.0,97459.0,0.91811866]
[1732445307680,0.0017178,97482.0,97459.0,0.91611866]
[1732445307912,0.0017178,97482.0,97479.0,0.11317082]
[1732445308131,0.0017178,97482.0,97479.0,0.11956409]
[1732445308335,0.0017178,97482.0,97479.0,0.12386168]
[1732445311118,0.0017178,97482.0,97479.0,0.42690159]
[1732445311349,0.0017178,97482.0,97479.0,0.42587595]
[1732445311588,0.0017178,97482.0,97479.0,0.59899553]
[1732445311881,0.0017178,97482.0,97479.0,0.5989943]
[1732445312103,0.0017178,97482.0,97479.0,0.7989943]
[1732445312321,0.0017178,97482.0,97479.0,0.79260226]
[1732445312538,0.0017178,97486.0,97485.0,0.11317082]
[1732445312753,0.0017178,97486.0,97485.0,0.23282987]
[1732445312984,0.0017178,97486.0,97485.0,0.23180431]
[1732445313211,0.0017178,97486.0,97485.0,0.2361019]
[1732445315440,0.0017178,97486.0,97485.0,0.13208763]
[1732445315714,0.0017178,97486.0,97485.0,0.02091681]
[1732445315943,0.0475178,97486.0,97485.0,0.02091681]
[1732445316402,0.22703207,97486.0,97485.0,0.02091681]
[1732445316640,0.22703207,97486.0,97485.0,0.00429759]
[1732445316864,0.22703207,97486.0,97461.0,0.11117082]
[1732445316865,0.2733,97485.0,97461.0,0.11117082]
[1732445317093,0.15,97479.0,97462.0,0.00639499]
[1732445317316,0.1233,97474.0,97446.0,0.0008583]
[1732445317544,0.0775,97471.0,97446.0,0.11202912]
[1732445317770,0.0775,97469.0,97450.0,0.11117082]
[1732445318016,0.10201427,97468.0,97450.0,0.11117082]
[1732445318265,0.10201427,97468.0,97447.0,0.01511375]
[1732445318266,0.10201427,97468.0,97455.0,0.11117082]
[1732445318513,0.0775,97467.0,97451.0,0.00390731]
[1732445318731,0.14781427,97466.0,97456.0,0.00396104]
[1732445318944,0.14781427,97466.0,97450.0,0.11117082]
[1732445318945,0.14781427,97466.0,97457.0,0.01151319]
[1732445319168,0.14781427,97466.0,97457.0,0.01547247]
[1732445319384,0.14781427,97466.0,97457.0,0.01151319]
[1732445320051,0.14594427,97466.0,97457.0,0.01151319]
[1732445321826,0.14594427,97466.0,97446.0,0.0008583]
[1732445322051,0.14594427,97466.0,97458.0,0.00395869]
[1732445322268,0.14594427,97466.0,97446.0,0.0008583]
[1732445322553,0.14594427,97466.0,97459.0,0.0039581]
[1732445322780,0.14594427,97466.0,97446.0,0.0008583]
[1732445323013,0.14594427,97466.0,97449.0,0.11117082]
[1732445323235,0.14594427,97466.0,97460.0,0.00395751]
[1732445323460,0.14594427,97466.0,97450.0,0.11117082]
[1732445323692,0.14594427,97466.0,97461.0,0.00396915]
[1732445323909,0.14594427,97466.0,97450.0,0.11117082]
[1732445324136,0.15,97465.0,97451.0,0.01120291]
[1732445324391,0.15,97463.0,97451.0,0.01516629]
[1732445324601,0.10201427,97462.0,97451.0,0.01516629]
[1732445324825,0.10201427,97462.0,97452.0,0.01271954]
[1732445325041,0.10201427,97462.0,97457.0,0.000858]
[1732445325252,0.10161627,97462.0,97457.0,0.000858]
[1732445327924,0.10087127,97462.0,97457.0,0.000858]
[1732445328147,0.10087127,97462.0,97458.0,0.01247484]
[1732445328391,0.10087127,97462.0,97458.0,0.01649456]
[1732445335070,0.10087127,97462.0,97457.0,0.000858]
[1732445335978,0.10087127,97462.0,97458.0,0.00401553]
[1732445336202,0.10087127,97462.0,97457.0,0.000858]
[1732445337378,0.10087127,97462.0,97458.0,0.00401553]
[1732445337827,0.10087127,97462.0,97457.0,0.000858]
[1732445338081,0.10087127,97462.0,97459.0,0.00401494]
[1732445338325,0.10087127,97462.0,97458.0,0.01120288]
[1732445338580,0.10258767,97462.0,97458.0,0.01120288]
[1732445340372,0.10258767,97462.0,97457.0,0.000858]
[1732445344293,0.33441427,97458.0,97457.0,0.000858]
[1732445344560,0.38031427,97458.0,97457.0,0.000858]
[1732445349556,0.38031427,97458.0,97457.0,0.050858]
[1732445349997,0.33441427,97458.0,97457.0,0.050858]
[1732445350220,0.25201427,97458.0,97457.0,0.06706088]
[1732445350449,0.28367944,97458.0,97457.0,0.06706088]
[1732445350668,0.28367944,97458.0,97457.0,0.07110021]
[1732445351088,0.28367944,97458.0,97457.0,0.05489733]
[1732445351308,0.28367944,97458.0,97457.0,0.050858]
[1732445353494,0.25201427,97458.0,97457.0,0.050858]
[1732445353919,0.28372287,97458.0,97457.0,0.050858]
[1732445354334,0.10201427,97458.0,97457.0,0.050858]
[1732445354806,0.10201427,97458.0,97457.0,0.05570817]
[1732445355019,0.10201427,97458.0,97457.0,0.07239607]
[1732445364623,0.09701427,97458.0,97457.0,0.07239607]
[1732445366252,0.09701427,97458.0,97457.0,0.05570817]
[1732445367753,0.12871082,97458.0,97457.0,0.05570817]
[1732445368215,0.12871082,97458.0,97457.0,0.050858]
[1732445368727,0.12871082,97458.0,97457.0,0.000858]
[1732445368962,0.12871082,97458.0,97446.0,0.2]
[1732445369184,0.12871082,97458.0,97447.0,0.02]
[1732445369185,0.09701427,97458.0,97447.0,0.02]
[1732445369400,0.09701427,97458.0,97447.0,0.0040313]
[1732445369623,0.09701427,97458.0,97444.0,0.07621268]
[1732445369846,0.09701427,97458.0,97448.0,0.00403072]
[1732445370073,0.09701427,97458.0,97444.0,0.07621268]
[1732445370288,0.09701427,97458.0,97449.0,0.00403013]
[1732445370502,0.09701427,97458.0,97445.0,0.00762127]
[1732445370974,0.09701427,97458.0,97446.0,0.00403189]
[1732445371407,0.09701427,97458.0,97446.0,0.00604695]
[1732445373192,0.09701427,97458.0,97444.0,0.07621268]
[1732445373430,0.09701427,97458.0,97441.0,0.07621268]
[1732445373637,0.09701427,97458.0,97445.0,0.00604872]
[1732445373899,0.09701427,97458.0,97442.0,0.00605137]
[1732445374116,0.09701427,97458.0,97446.0,0.00604784]
[1732445374329,0.09701427,97458.0,97444.0,0.07621268]
[1732445374539,0.09701427,97458.0,97445.0,0.00604872]
[1732445375004,0.09701427,97458.0,97445.0,0.0822614]
[1732445375925,0.2046938,97457.0,97445.0,0.00604872]
[1732445376177,0.15,97455.0,97445.0,0.00604872]
[1732445376412,0.15,97453.0,97439.0,0.0008582]
[1732445376649,0.15,97451.0,97440.0,0.00770709]
[1732445376871,0.12501427,97450.0,97440.0,0.01377478]
[1732445377092,0.12501427,97450.0,97441.0,0.00908457]
[1732445377305,0.12501427,97450.0,97441.0,0.01514873]
[1732445379347,0.12501427,97450.0,97441.0,0.00606416]
[1732445379816,0.12501427,97450.0,97439.0,0.0008582]
[1732445380019,0.12501427,97450.0,97442.0,0.00607332]
[1732445380243,0.12501427,97450.0,97440.0,0.00607509]
[1732445380471,0.12501427,97450.0,97441.0,0.0083146]
[1732445380688,0.1996,97449.0,97441.0,0.01438881]
[1732445380904,0.12501427,97448.0,97441.0,0.01438881]
[1732445381126,0.023,97446.0,97441.0,0.00607421]
[1732445381356,0.023,97446.0,97439.0,0.0008582]
[1732445381357,0.023,97444.0,97439.0,0.0008582]
[1732445381558,0.023,97442.0,97439.0,0.0008582]
[1732445381773,0.10201427,97441.0,97439.0,0.0008582]
[1732445381994,0.023,97440.0,97439.0,0.0008582]
[1732445382223,0.12501427,97440.0,97439.0,0.0008582]
[1732445384022,0.27501427,97440.0,97439.0,0.0008582]
[1732445387350,0.32461427,97440.0,97439.0,0.0008582]
[1732445395315,0.40441427,97440.0,97439.0,0.0008582]
[1732445395787,0.43603728,97440.0,97439.0,0.0008582]
[1732445397458,0.5598246,97440.0,97439.0,0.0008582]
[1732445398598,0.5615414,97440.0,97439.0,0.0008582]
[1732445399024,0.1262,97432.0,97404.0,0.2]
[1732445399306,0.023,97421.0,97405.0,0.00639896]
[1732445399523,0.173,97431.0,97406.0,0.00639896]
[1732445399524,0.023,97419.0,97406.0,0.00639896]
[1732445399738,0.023,97417.0,97406.0,0.01814529]
[1732445399939,0.10201427,97416.0,97407.0,0.01251923]
[1732445400146,0.023,97415.0,97408.0,0.02306645]
[1732445400372,0.023,97413.0,97407.0,0.00612031]
[1732445400580,0.10201427,97412.0,97409.0,0.00611854]
[1732445400790,0.023,97411.0,97407.0,0.0094358]
[1732445401021,0.10201427,97410.0,97408.0,0.02275811]
[1732445401249,0.023,97409.0,97408.0,0.00611672]
[1732445401488,0.12501427,97409.0,97408.0,0.00611672]
[1732445401703,0.12501427,97409.0,97407.0,0.0094358]
[1732445401918,0.10201427,97408.0,97407.0,0.0094358]
[1732445402409,0.09701427,97408.0,97407.0,0.01583473]
[1732445402630,0.09701427,97408.0,97407.0,0.0094358]
[1732445402864,0.09701427,97408.0,97407.0,0.0158347]
[1732445403170,0.09701427,97408.0,97407.0,0.2094358]
[1732445403428,0.09701427,97408.0,97407.0,0.0094358]
[1732445403913,0.12001427,97408.0,97407.0,0.01583469]
[1732445404195,0.12001427,97408.0,97407.0,0.01583467]
[1732445404465,0.12001427,97408.0,97407.0,0.0158347]
[1732445404708,0.023,97408.0,97407.0,0.0063989]
[1732445404959,0.023,97437.0,97414.0,0.0759]
[1732445405226,0.15,97435.0,97415.0,0.09614395]
[1732445405481,0.15,97433.0,97415.0,0.10254232]
[1732445405736,0.15,97431.0,97416.0,0.0289626]
[1732445405985,0.15,97431.0,97417.0,0.00639837]
[1732445405986,0.15,97429.0,97417.0,0.00639837]
[1732445406225,0.15,97427.0,97418.0,0.00639837]
[1732445406471,0.15,97429.0,97419.0,0.00639837]
[1732445406472,0.15,97425.0,97419.0,0.00639837]
[1732445406736,0.15,97423.0,97420.0,0.02446824]
[1732445406990,0.12501427,97422.0,97421.0,0.00639837]
[1732445407246,0.12501427,97422.0,97420.0,0.01806987]
[1732445407493,0.12501427,97422.0,97417.0,0.07621268]
[1732445407494,0.10201427,97421.0,97417.0,0.07621268]
[1732445407711,0.023,97420.0,97418.0,0.00639822]
[1732445407985,0.023,97418.0,97417.0,0.07621268]
[1732445408209,0.12501427,97418.0,97417.0,0.08261091]
[1732445410430,0.12501427,97418.0,97417.0,0.09284808]
[1732445410653,0.0766,97438.0,97417.0,0.09284808]
[1732445410654,0.023,97427.0,97420.0,0.07621268]
[1732445410868,0.173,97425.0,97422.0,0.07621268]
[1732445411085,0.27501427,97425.0,97424.0,0.07621268]
[1732445411296,0.27501427,97425.0,97424.0,0.08261071]
[1732445411502,0.27501427,97425.0,97424.0,0.09929925]
[1732445413985,0.27501427,97425.0,97424.0,0.09929944]
[1732445415147,0.023,97425.0,97424.0,0.09929944]
[1732445415369,0.023,97425.0,97424.0,0.25964268]
[1732445415595,0.023,97425.0,97424.0,0.22809944]
[1732445416453,0.023,97425.0,97424.0,0.22534952]
[1732445416881,0.023,97425.0,97424.0,0.22763485]
[1732445417308,0.023,97425.0,97424.0,0.2253485]
[1732445417517,0.023,97425.0,97424.0,0.24949502]
[1732445417736,0.023,97425.0,97424.0,0.44949502]
[1732445417943,0.023,97425.0,97424.0,0.24949502]
[1732445418156,0.023,97425.0,97424.0,0.44949502]
[1732445419645,0.018,97425.0,97424.0,0.44949502]
[1732445420931,0.018,97425.0,97424.0,0.43286274]
[1732445421147,0.018,97425.0,97424.0,0.24949463]
[1732445422077,0.018,97425.0,97424.0,0.24949507]
[1732445422506,0.018,97425.0,97424.0,0.23925979]
[1732445424982,0.018,97425.0,97424.0,0.43725979]
[1732445425215,0.018,97425.0,97424.0,0.43725993]
[1732445426451,0.018,97425.0,97424.0,0.43286274]
[1732445428654,0.018,97425.0,97424.0,0.43925991]
[1732445428899,0.013,97425.0,97424.0,0.43925991]
[1732445430634,0.013,97425.0,97424.0,0.43725991]
[1732445431372,0.013,97425.0,97424.0,0.43925991]
[1732445431618,0.0017168,97440.0,97424.0,0.43925991]
[1732445431619,0.0017168,97440.0,97439.0,0.27621268]
[1732445431842,0.0247168,97440.0,97439.0,0.28260985]
[1732445432058,0.0247168,97440.0,97439.0,0.3661687]
[1732445432714,0.0247168,97440.0,97439.0,0.3681687]
[1732445432923,0.0247168,97440.0,97439.0,0.45468557]
[1732445433614,0.0247168,97440.0,97439.0,0.4649197]
[1732445434559,0.0247168,97440.0,97439.0,0.4629197]
[1732445434983,0.0247168,97440.0,97439.0,0.4649197]
[1732445435944,0.0017168,97440.0,97439.0,0.4649197]
[1732445436614,0.0017168,97440.0,97439.0,0.2649197]
[1732445436833,0.0017168,97440.0,97439.0,0.4649197]
[1732445437256,0.0017168,97440.0,97439.0,0.2649197]
[1732445437529,0.0017168,97440.0,97439.0,0.4649197]
[1732445437951,0.0017168,97440.0,97439.0,0.46491644]
[1732445438193,0.0017168,97440.0,97439.0,0.26491644]
[1732445438397,0.0017168,97440.0,97439.0,0.46491644]
[1732445438606,0.0017168,97440.0,97439.0,0.26491644]
[1732445439039,0.0017168,97440.0,97439.0,0.46491644]
[1732445439500,0.0017168,97440.0,97439.0,0.26491644]
[1732445440614,0.0017168,97440.0,97439.0,0.46491644]
[1732445441726,0.0017168,97440.0,97439.0,0.4546838]
[1732445441944,0.0017168,97440.0,97439.0,0.2546838]
[1732445442593,0.0017168,97440.0,97439.0,0.26491633]
[1732445443043,0.00133052,97440.0,97439.0,0.46491633]
[1732445443295,0.00133052,97440.0,97439.0,0.26491633]
[1732445443515,0.00133052,97440.0,97439.0,0.55669807]
[1732445443933,0.00133052,97440.0,97439.0,0.35669807]
[1732445444162,0.00133052,97440.0,97439.0,0.55669807]
[1732445444379,0.00133052,97440.0,97439.0,0.35669807]
[1732445444866,0.00133052,97440.0,97439.0,0.3566979]
[1732445445340,0.00133052,97440.0,97439.0,0.35669793]
[1732445445557,0.00133052,97440.0,97439.0,0.75669793]
[1732445445761,0.00133052,97440.0,97439.0,0.55669793]
[1732445448513,0.00133052,97440.0,97439.0,0.55469739]
[1732445448720,0.00133052,97440.0,97439.0,0.54830267]
[1732445448928,0.00133052,97440.0,97439.0,0.55030267]
[1732445449165,0.00133052,97440.0,97439.0,0.75030267]
[1732445450265,0.00133052,97440.0,97439.0,0.55030267]
[1732445452651,0.00133052,97440.0,97439.0,0.54830267]
[1732445452896,0.00133052,97440.0,97439.0,0.55030267]
[1732445455289,0.00133052,97440.0,97439.0,0.54830267]
[1732445455509,0.00133052,97440.0,97439.0,0.75030267]
[1732445455994,0.00133052,97440.0,97439.0,0.74830267]
[1732445456220,0.00133052,97440.0,97439.0,0.75030267]
[1732445456430,0.08256372,97480.0,97474.0,0.07621268]
[1732445456674,0.023,97477.0,97474.0,0.07621268]
[1732445456932,0.10201427,97476.0,97475.0,0.00315681]
[1732445457156,0.10201427,97476.0,97475.0,0.00813695]
[1732445458866,0.12501427,97476.0,97475.0,0.00813695]
[1732445459719,0.12501427,97476.0,97475.0,0.01453165]
[1732445463629,0.12501427,97476.0,97475.0,0.00813695]
[1732445464311,0.12001427,97476.0,97475.0,0.00813695]
[1732445466778,0.16641427,97476.0,97475.0,0.00813695]
[1732445466985,0.16641427,97476.0,97444.0,0.002]
[1732445466986,0.0799,97473.0,97465.0,0.07621268]
[1732445467227,0.17141427,97472.0,97465.0,0.07621268]
[1732445467443,0.17141427,97472.0,97466.0,0.00762127]
[1732445469292,0.023,97472.0,97471.0,0.07621268]
[1732445469505,0.023,97476.0,97475.0,0.07621268]
[1732445469717,0.023,97476.0,97475.0,0.08383395]
[1732445471658,0.023,97476.0,97475.0,0.08786867]
[1732445473580,0.023,97476.0,97475.0,0.08872677]
[1732445474020,0.023,97476.0,97475.0,0.29072677]
[1732445475082,0.0017168,97477.0,97476.0,0.27821268]
[1732445475288,0.0017168,97477.0,97476.0,0.31552536]
[1732445475503,0.0017168,97477.0,97476.0,0.31954921]
[1732445476333,0.0247168,97477.0,97476.0,0.31954921]
[1732445476773,0.0247168,97477.0,97476.0,0.32594267]
[1732445477417,0.0247168,97477.0,97476.0,0.11954921]
[1732445477648,0.0247168,97477.0,97476.0,0.28965574]
[1732445477858,0.0247168,97477.0,97476.0,0.28863001]
[1732445478284,0.0247168,97477.0,97476.0,0.08863001]
[1732445478504,0.0247168,97477.0,97476.0,0.08965569]
[1732445478505,0.0017168,97477.0,97476.0,0.08965569]
[1732445478723,0.0017168,97477.0,97476.0,0.10131572]
[1732445478985,0.0017168,97477.0,97476.0,0.30770889]
[1732445479211,0.0017168,97477.0,97476.0,0.10668321]
[1732445479420,0.0017168,97477.0,97476.0,0.10731187]
[1732445479656,0.0017168,97477.0,97476.0,0.40932614]
[1732445479865,0.0017168,97477.0,97476.0,0.53640048]
[1732445480722,0.0017168,97477.0,97476.0,0.73640048]
[1732445480957,0.0017168,97477.0,97476.0,0.96585192]
[1732445481208,0.0017168,97477.0,97476.0,0.73640048]
[1732445481416,0.0017168,97477.0,97476.0,0.53640048]
[1732445481643,0.0017168,97477.0,97476.0,0.73640048]
[1732445481849,0.0017168,97477.0,97476.0,1.02189853]
[1732445482054,0.0017168,97477.0,97476.0,1.00527733]
[1732445482273,0.0017178,97486.0,97481.0,0.47581568]
[1732445482478,0.0017178,97486.0,97481.0,0.72454872]
[1732445482687,0.0017178,97486.0,97481.0,0.71832064]
[1732445483774,0.0017178,97486.0,97481.0,0.51832064]
[1732445484388,0.0017178,97486.0,97481.0,0.71832064]
[1732445484616,0.0017178,97486.0,97481.0,0.79335091]
[1732445485491,0.0017178,97486.0,97481.0,0.58745562]
[1732445485711,0.0017178,97486.0,97481.0,0.58745551]
[1732445488132,0.0017178,97486.0,97481.0,0.78745551]
[1732445489723,0.0017178,97486.0,97481.0,1.01638894]
[1732445489989,0.0017178,97486.0,97481.0,1.02661522]
[1732445490464,0.0017178,97486.0,97481.0,0.79768179]
[1732445490918,0.0017178,97486.0,97481.0,1.02661522]
[1732445491379,0.0017178,97486.0,97481.0,0.79768179]
[1732445491600,0.0017178,97511.0,97509.0,0.07192039]
[1732445491833,0.0017178,97511.0,97509.0,0.07831211]
[1732445492070,0.0017178,97511.0,97509.0,0.08226163]
[1732445493192,0.0017178,97511.0,97509.0,0.083287]
[1732445493439,0.00050448,97510.0,97509.0,0.08226163]
[1732445493663,0.00050448,97510.0,97509.0,0.09059033]
[1732445494546,0.00050448,97510.0,97482.0,0.18195407]
[1732445494547,0.00050448,97510.0,97483.0,0.10201427]
[1732445494761,0.00050448,97510.0,97509.0,0.20450764]
[1732445495018,0.00050448,97510.0,97509.0,0.02045076]
[1732445495255,0.00050448,97510.0,97509.0,0.20450764]
[1732445495464,0.00050448,97510.0,97509.0,0.00450764]
[1732445495685,0.00050448,97510.0,97485.0,0.00102537]
[1732445495909,0.00050448,97510.0,97509.0,0.00450764]
[1732445496183,0.00050448,97510.0,97487.0,0.15]
[1732445496401,0.00050448,97510.0,97509.0,0.00450764]
[1732445496636,0.00050448,97510.0,97488.0,0.10201427]
[1732445496870,0.00050448,97510.0,97509.0,0.00450764]
[1732445497289,0.00050448,97510.0,97489.0,0.00102537]
[1732445497533,0.00050448,97510.0,97509.0,0.00450764]
[1732445497748,0.1202,97509.0,97491.0,0.00102533]
[1732445497955,0.1202,97509.0,97486.0,0.0754]
[1732445497956,0.1202,97509.0,97492.0,0.1030397]
[1732445499292,0.1202,97509.0,97508.0,0.2]
[1732445499521,0.00014534,97510.0,97509.0,0.2]
[1732445499740,0.00014534,97510.0,97509.0,0.22]
[1732445501329,0.00014534,97510.0,97509.0,0.02]
[1732445501562,0.00014534,97510.0,97493.0,0.0010254]
[1732445501772,0.00014534,97510.0,97494.0,0.10201427]
[1732445501978,0.00014534,97510.0,97509.0,0.2]
[1732445502186,0.00014534,97510.0,97495.0,0.0055428]
[1732445502392,0.00014534,97510.0,97509.0,0.00450995]
[1732445502615,0.00014534,97510.0,97497.0,0.0010254]
[1732445502814,0.00014534,97510.0,97509.0,0.2]
[1732445503247,0.00014534,97510.0,97509.0,0.30652422]
[1732445503460,0.00014534,97510.0,97509.0,0.33717664]
[1732445504120,0.00014534,97510.0,97509.0,0.34740176]
[1732445505054,0.00014534,97510.0,97509.0,0.14740176]
[1732445505290,0.00014534,97510.0,97509.0,0.11674934]
[1732445505729,0.00014534,97510.0,97509.0,0.31674934]
[1732445506579,0.00014534,97510.0,97509.0,0.32313949]
[1732445506800,0.0769,97529.0,97527.0,0.2]
[1732445507039,0.0769,97529.0,97527.0,0.21763946]
[1732445507276,0.0769,97529.0,97527.0,0.21190337]
[1732445507513,0.15,97553.0,97527.0,0.21190337]
[1732445507514,0.35,97553.0,97527.0,0.21190337]
[1732445507802,0.1272172,97538.0,97527.0,0.21087814]
[1732445508036,0.1272172,97538.0,97527.0,0.22110195]
[1732445508287,0.1272172,97538.0,97527.0,0.04321215]
[1732445508531,0.1272172,97538.0,97527.0,0.02110195]
[1732445510004,0.1272172,97538.0,97527.0,0.02110151]
[1732445510230,0.1272172,97538.0,97527.0,0.01087784]
[1732445512133,0.1272172,97538.0,97527.0,0.00448805]
[1732445512593,0.1272172,97538.0,97511.0,0.15]
[1732445512851,0.1272172,97538.0,97527.0,0.0044577]
[1732445513072,0.1272172,97538.0,97512.0,0.14310709]
[1732445513073,0.1272172,97538.0,97513.0,0.15]
[1732445513281,0.1272172,97538.0,97514.0,0.10201427]
[1732445513493,0.1272172,97538.0,97515.0,0.15446408]
[1732445513706,0.1272172,97538.0,97516.0,0.14677139]
[1732445513908,0.1272172,97538.0,97517.0,0.15]
[1732445514168,0.1272172,97538.0,97518.0,0.10201427]
[1732445514597,0.1272172,97538.0,97519.0,0.00446461]
[1732445514803,0.1272172,97538.0,97520.0,0.10201427]
[1732445515011,0.1272172,97538.0,97521.0,0.02564789]
[1732445515220,0.1272172,97538.0,97521.0,0.03011144]
[1732445515438,0.1272172,97538.0,97522.0,0.00102516]
[1732445515861,0.1272172,97538.0,97523.0,0.00446227]
[1732445516070,0.1272172,97538.0,97524.0,0.00102516]
[1732445516277,0.1272172,97538.0,97525.0,0.00446076]
[1732445516491,0.1272172,97538.0,97523.0,0.01286873]
[1732445516492,0.1272172,97538.0,97526.0,0.00102516]
[1732445516746,0.1272172,97538.0,97527.0,0.0141556]
[1732445517214,0.1272172,97538.0,97527.0,0.01861297]
[1732445517664,0.1272172,97538.0,97527.0,0.00445737]
[1732445517878,0.1272172,97538.0,97506.0,0.15]
[1732445518106,0.1272172,97538.0,97501.0,0.025648]
[1732445518107,0.1272172,97538.0,97508.0,0.15]
[1732445518326,0.1272172,97538.0,97509.0,0.10201427]
[1732445518540,0.1272172,97538.0,97510.0,0.18830823]
[1732445518773,0.1272172,97538.0,97511.0,0.10201427]
[1732445519029,0.1272172,97538.0,97512.0,0.15]
[1732445519255,0.1272172,97538.0,97513.0,0.10201427]
[1732445519465,0.1272172,97538.0,97514.0,0.15]
[1732445519679,0.1272172,97538.0,97516.0,0.15]
[1732445519887,0.1272172,97538.0,97517.0,0.10647818]
[1732445521753,0.1272172,97538.0,97527.0,0.2]
[1732445521994,0.1272172,97538.0,97517.0,0.10647818]
[1732445522223,0.1272172,97538.0,97527.0,0.00445661]
[1732445522452,0.1272172,97538.0,97517.0,0.10201427]
[1732445522688,0.1272172,97538.0,97518.0,0.02520143]
[1732445522935,0.1272172,97538.0,97519.0,0.10201427]
[1732445523363,0.1272172,97538.0,97520.0,0.0054855]
[1732445523571,0.1272172,97538.0,97520.0,0.00446033]